Cogmind - Beta 9.2 @@@ ROGUE MODE // 2019.11.16 @ 22:35:40 Player: Alexbot Result: Escaped! Performance ------------- Evolutions (9) 4500 Regions Visited (31) 6200 Robots Destroyed (324) 1620 Value Destroyed (15447) 15447 Prototype IDs (52) 1040 Alien Tech Used (1) 200 Bonus (21725) 21725 TOTAL SCORE: 50732 Bonus ------- Sticky Parts 4500 Triggered Max Security 1000 High Alert Combat Kills 3751 Follower Combat Kills 2251 Network Hubs Disabled 200 Aligned with FarCom 300 Met Data Miner 300 Met Zhirov 300 Met Warlord at Base 500 MAIN.C Attacked Warlord 500 Built Enhanced Grunts 300 Met R17 at Cetus 500 Met Warlord at Research 2000 Win 3000 Challenge Win 7000 Friendly Fire -4677 Cogmind --------- Core Integrity 1065/1600 Matter 253/300 Energy 58/350 System Corruption 30% Temperature Cool (0) Movement Rolling (100) Ox1 Location To Epsilon Eridani Parts ------- > --- POWER (1) -------- Quantum Reactor > --- PROPULSION (4) --- Centrium Wheel > --- UTILITY (15) ----- Medium Storage Unit Large Storage Unit Large Storage Unit Dimensional Manipulator Experimental Terrain Scan Processor Experimental Armor Integrity Analyzer Improved Weapon Cycler > --- WEAPON (5) ------- Nova Cannon > --- INVENTORY (20) --- Advanced Heavy Treads Improved Coolant Injector Matter Compressor (250) Advanced Core Analyzer Advanced Transmission Jammer Experimental Focal Shield Dimensional Node Initializer Transdimensional Reconstructor Improved Matter Neutralizer Enhanced Nova Cannon Plasma Lance Peak State ------------ > --- POWER ------------ Reinforced Fission Core > --- PROPULSION ------- Heavy Treads Centrium Wheel Centrium Wheel > --- UTILITY ---------- Improved Coolant Injector Medium Storage Unit Large Storage Unit Large Storage Unit Large Storage Unit Advanced Energy Well Advanced Signal Interpreter Experimental Terrain Scan Processor Experimental Armor Integrity Analyzer Improved Weapon Cycler SHELL Armor System Shield > --- WEAPON ----------- HERF Cannon Heavy Neutron Cannon Hardcell Cannon Micro-nuke Launcher > --- INVENTORY -------- Advanced Heavy Treads Advanced Heavy Treads Centrium Wheel Centrium Wheel Combat Antigrav System Combat Antigrav System Combat Antigrav System Combat Linear Gravjet Fusion Compressor Improved Coolant Injector Matter Compressor Dimensional Manipulator Advanced Transmission Jammer Advanced Phase Shifter Experimental Focal Shield Dimensional Node Initializer Transdimensional Reconstructor Nova Cannon Improved Matter Neutralizer Enhanced Nova Cannon Enhanced Nova Cannon Micro-nuke Launcher Plasma Lance [Rating: 156] Favorites ----------- Power Micro Nuclear Core Engine Light Angular Momentum Engine Power Core Micro Nuclear Core Reactor Quantum Reactor Propulsion Heavy Treads Treads Heavy Treads Leg Carbon-fiber Leg Wheel Centrium Wheel Utility Large Storage Unit Device Improved Coolant Injector Storage Large Storage Unit Processor Experimental Terrain Scan Processor Hackware Hacking Suite Protection Centrium Medium Armor Plating Weapon Heavy Neutron Cannon Energy Gun Medium Laser Energy Cannon Heavy Neutron Cannon Ballistic Gun Minigun Ballistic Cannon Advanced Assault Cannon Launcher Heavy Missile Launcher Build | -11 -10 -10 -9 -9 -9 -8 -8 -7 -7 -7 -7 -6 -6 -6 -6 -6 -6 -5 -5 -5 -5 -4 -4 -4 -4 -4 -3 -3 -3 -2 -1 ------- Run | Scr Mat Min Mat Min Exi Min Mat Fac Low Low Dat Pro Fac Ext Cet Arc Hub Fac Upp Upp Zhi Pro Fac Upp Upp War Pro Res Tes Res Acc Slots Evolved 18 | . . . 2 . . . 2 2 . . . . 2 . . . . 2 . . . . 2 . . . . 2 . 2 2 Power . | . . . . . . . . . . . . . . . . . . . . . . . . . . . . . . . . Propulsion 2 | . . . . . . . . . . . . . . . . . . 2 . . . . . . . . . . . . . Utility 13 | . . . 1 . . . 1 2 . . . . 2 . . . . . . . . . 2 . . . . 2 . 2 1 Weapon 3 | . . . 1 . . . 1 . . . . . . . . . . . . . . . . . . . . . . . 1 Parts Attached 137 | 5 1 . 14 . 1 1 8 8 2 . 3 7 8 14 1 . 9 5 . 2 1 . 13 1 . . 7 2 4 10 10 Power 8 | 1 . . 1 . . . . 1 . . . . 1 . . . . . . 1 . . 1 . . . . . . 1 1 Engine 3 | 1 . . 1 . . . . . . . . . . . . . . . . 1 . . . . . . . . . . . Core 4 | . . . . . . . . 1 . . . . 1 . . . . . . . . . 1 . . . . . . 1 . Reactor 1 | . . . . . . . . . . . . . . . . . . . . . . . . . . . . . . . 1 Propulsion 28 | 2 . . 3 . . 1 1 3 . . 1 . 3 2 . . 1 2 . . . . 2 . . . 3 . 1 . 3 Treads 16 | 2 . . . . . . . 2 . . 1 . 1 2 . . 1 2 . . . . 2 . . . 1 . 1 . 1 Leg 1 | . . . . . . . . . . . . . 1 . . . . . . . . . . . . . . . . . . Wheel 11 | . . . 3 . . 1 1 1 . . . . 1 . . . . . . . . . . . . . 2 . . . 2 Hover . | . . . . . . . . . . . . . . . . . . . . . . . . . . . . . . . . Flight . | . . . . . . . . . . . . . . . . . . . . . . . . . . . . . . . . Utility 47 | . 1 . 4 . 1 . 3 2 1 . . 2 2 5 1 . 4 1 . 1 1 . 6 . . . 2 2 2 5 1 Device 10 | . . . . . . . 1 1 . . . . . 1 . . 1 1 . 1 . . . . . . 1 1 1 . 1 Storage 8 | . . . . . 1 . 2 . . . . . . 1 . . 1 . . . . . 2 . . . . . . 1 . Processor 3 | . . . . . . . . . . . . . . . . . . . . . . . . . . . . 1 . 2 . Hackware 3 | . . . . . . . . . . . . . . . . . 1 . . . . . 1 . . . . . . 1 . Protection 23 | . 1 . 4 . . . . 1 1 . . 2 2 3 1 . 1 . . . 1 . 3 . . . 1 . 1 1 . Artifact . | . . . . . . . . . . . . . . . . . . . . . . . . . . . . . . . . Weapon 54 | 2 . . 6 . . . 4 2 1 . 2 5 2 7 . . 4 2 . . . . 4 1 . . 2 . 1 4 5 Energy Gun 7 | . . . 1 . . . . . . . . 1 1 1 . . . . . . . . . . . . . . 1 . 2 Energy Cannon 14 | . . . 2 . . . 1 . . . . . . 1 . . 1 1 . . . . 1 1 . . 2 . . 2 2 Ballistic Gun 15 | 2 . . 2 . . . 2 1 1 . . . 1 4 . . 1 . . . . . 1 . . . . . . . . Ballistic Cannon 9 | . . . . . . . . 1 . . . 3 . 1 . . 2 . . . . . 1 . . . . . . 1 . Launcher 9 | . . . 1 . . . 1 . . . 2 1 . . . . . 1 . . . . 1 . . . . . . 1 1 Special Weapon . | . . . . . . . . . . . . . . . . . . . . . . . . . . . . . . . . Impact Weapon . | . . . . . . . . . . . . . . . . . . . . . . . . . . . . . . . . Slashing Weapon . | . . . . . . . . . . . . . . . . . . . . . . . . . . . . . . . . Piercing Weapon . | . . . . . . . . . . . . . . . . . . . . . . . . . . . . . . . . Special Melee Weapon . | . . . . . . . . . . . . . . . . . . . . . . . . . . . . . . . . Unidentified Prototypes 10 | . . . 1 . . . . . . . . . . . 1 . 3 . . . 1 . . . . . . . . 2 2 Parts Lost 126 | . . 1 13 . . . 8 6 . . 8 4 7 10 1 6 5 1 . 3 . . 15 . 1 2 3 . 11 1 20 Power 8 | . . . 2 . . . 1 . . . . . 1 . . . . . . 1 . . 1 . . . . . 1 . 1 Propulsion 27 | . . . 4 . . . 1 3 . . 2 . 2 2 . . 2 . . . . . 3 . . . 2 . 1 . 5 Utility 39 | . . 1 2 . . . 2 1 . . 1 2 1 3 1 2 2 . . 2 . . 4 . 1 1 1 . 5 1 6 Weapon 52 | . . . 5 . . . 4 2 . . 5 2 3 5 . 4 1 1 . . . . 7 . . 1 . . 4 . 8 Highest Loss Streak 11 | . . 1 5 . . . 3 3 . . 8 1 3 4 1 6 3 1 . 2 . . 6 . 1 2 3 . 11 1 9 Average Slot Usage (%) 79 | . 83 83 62 77 82 90 89 87 93 93 79 79 64 78 92 83 84 82 94 88 90 94 81 74 76 72 78 85 81 68 72 Engine 1 | . 14 14 1 11 11 11 8 . . . . . . . . . . . . 3 5 5 2 . . . . . . . . Core 3 | . . . . . . . . 3 7 7 7 7 6 6 6 6 6 5 5 1 . . 1 5 5 5 5 4 3 3 3 Treads 9 | . 28 28 7 . . . . 1 15 15 12 7 5 6 13 13 9 8 17 17 17 17 13 10 10 10 6 4 4 4 3 Wheel 3 | . . . 12 11 11 13 17 13 . . . . . 3 . . . . . . . . . . . . 6 9 9 8 7 Device 7 | . . . . . . . 4 13 15 15 15 9 . 4 6 6 12 9 11 9 11 11 8 5 5 5 8 14 15 9 8 Storage 18 | . . . . . 5 11 23 23 23 23 23 23 15 18 20 20 21 17 17 17 17 17 18 26 26 26 26 23 22 19 14 Processor 1 | . . . . . . . . . . . . . . . . . . . . . . . . . . . . 4 4 6 11 Hackware 3 | . . . . . . . . . . . . . . . . . 2 5 5 5 5 5 9 10 10 9 5 4 3 1 3 Protection 8 | . 12 12 15 22 22 22 6 3 3 7 4 7 9 12 19 16 13 11 11 7 7 11 10 10 8 5 6 4 3 4 3 Energy Cannon 4 | . . . 1 22 22 22 15 7 7 7 4 . . 1 . . 4 3 5 5 5 5 4 1 5 5 11 14 10 4 7 Ballistic Gun 5 | . 28 28 16 11 11 11 12 10 12 15 9 . 5 14 20 15 6 3 . . . . 1 . . . . . . . . Ballistic Cannon 6 | . . . . . . . . 1 7 . . 18 14 6 6 4 5 11 11 11 11 11 7 5 5 4 . . . 3 3 Launcher 1 | . . . 3 . . . . 6 . . 1 4 . . . . . 1 5 5 5 5 1 . . . . . . . 2 Naked Turns . | . . . . . . . . . . . . . . . . . . . . . . . . . . . . . . . . Heaviest Build 163 | 8 11 11 20 18 26 26 57 78 71 71 64 87 73 79 79 76 84 87 87 87 91 91 155 163 163 156 120 121 141 157 157 Greatest Support 150 | 40 40 40 40 16 16 26 28 44 44 44 44 20 20 56 56 56 80 137 137 137 137 137 150 140 140 140 145 32 75 70 70 Greatest Overweight (x) 7 | . . . 1 1 1 1 3 6 1 1 2 4 4 6 1 1 2 1 . . . . 1 1 1 1 3 3 4 4 7 Average Overweight (x) 1 | . . . . 1 1 . 1 2 1 1 1 3 3 3 1 . 1 . . . . . . 1 1 . 2 3 3 3 3 Largest Inventory Capacity 26 | 4 4 4 4 4 8 8 20 20 20 20 20 20 20 20 20 20 20 14 14 14 14 14 26 26 26 26 26 26 26 26 26 Average Capacity 18 | 4 4 4 4 4 6 8 17 20 20 20 20 20 17 19 20 20 17 14 14 14 14 14 17 26 26 26 26 26 25 24 22 Most Carried 26 | 4 4 4 4 4 8 8 18 20 18 20 20 17 16 20 20 20 19 14 14 14 14 14 22 24 23 25 26 26 26 26 26 Average Carried 16 | 2 4 3 3 3 5 8 13 17 17 18 19 13 15 17 19 20 15 13 14 13 13 14 16 23 23 24 23 25 25 22 21 Final Capacity 26 | 4 4 4 4 4 8 8 20 20 20 20 20 20 16 20 20 20 14 14 14 14 14 14 26 26 26 26 26 26 22 26 20 Final Carried 26 | 4 4 4 2 4 8 8 14 18 17 20 17 13 16 20 20 20 12 14 14 13 14 14 22 23 23 25 26 26 20 25 12 Class Distribution -------------------- 33% | Scavenger-Mutant 14% | Hauler-Tank 12% | Hauler-Mutant 11% | Scavenger-Tank 9% | Mutant 5% | Hauler-Skirmisher 3% | Tank Dominant Class ---------------- Mutant | -10/Materials Mutant | -10/Mines Mutant | -9/Materials Tank | -9/Mines Tank | -9/Exiles Tank | -8/Mines Hauler-Skirmisher | -8/Materials Hauler-Mutant | -7/Factory Hauler-Gunner | -7/Lower Caves Hauler-Tank | -7/Lower Caves Hauler-Tank | -7/Data Miner Hauler-Tank | -6/Proximity Caves Mutant | -6/Factory Scavenger-Mutant | -6/Extension Scavenger-Tank | -6/Cetus Scavenger-Tank | -6/Archives Scavenger-Mutant | -6/Hub_04(d) Scavenger-Mutant | -5/Factory Scavenger-Mutant | -5/Upper Caves Scavenger-Mutant | -5/Upper Caves Scavenger-Mutant | -5/Zhirov Scavenger-Mutant | -4/Proximity Caves Scavenger-Mutant | -4/Factory Scavenger-Tank | -4/Upper Caves Scavenger-Tank | -4/Upper Caves Hauler-Tank | -4/Warlord Hauler-Mutant | -3/Proximity Caves Hauler-Mutant | -3/Research Hauler-Mutant | -3/Testing Scavenger-Mutant | -2/Research Scavenger-Mutant | -1/Access Resources | -11 -10 -10 -9 -9 -9 -8 -8 -7 -7 -7 -7 -6 -6 -6 -6 -6 -6 -5 -5 -5 -5 -4 -4 -4 -4 -4 -3 -3 -3 -2 -1 ----------- Run | Scr Mat Min Mat Min Exi Min Mat Fac Low Low Dat Pro Fac Ext Cet Arc Hub Fac Upp Upp Zhi Pro Fac Upp Upp War Pro Res Tes Res Acc Matter Collected 7444 | 198 122 46 434 9 . 65 396 317 322 161 . 933 438 880 331 . 280 355 140 302 . 199 890 27 24 . 55 . 20 269 231 Remotely . | . . . . . . . . . . . . . . . . . . . . . . . . . . . . . . . . Salvage Created 12732 | . 234 51 791 . . 16 1026 517 256 6 52 986 238 645 84 . 619 217 168 488 . 294 2344 171 344 . 779 . 182 737 1487 Parts 575 | . 10 8 56 . . 4 67 23 15 3 . 44 10 30 4 . 36 3 3 12 . 10 97 9 19 . 18 . 5 17 72 Haulers Intercepted 8 | . . . 2 . . . 2 1 . . . . . . . . . . . . . . 3 . . . . . . . . Recyclers Shooed 7 | . . 1 3 . . . . . . . . . . 1 . . . . . . . . 1 . . . . . . . 1 Parts Field Recycled . | . . . . . . . . . . . . . . . . . . . . . . . . . . . . . . . . Retrieved Matter . | . . . . . . . . . . . . . . . . . . . . . . . . . . . . . . . . Parts Self-Destructed 167 | . . . . . . . . . 15 8 . 37 . . . . . . 3 12 . 8 . 7 14 62 1 . . . . Prevented 34 | . . . . . . . . . . . . . . . . . . . . 1 . . . . 1 15 17 . . . . Kills | -11 -10 -10 -9 -9 -9 -8 -8 -7 -7 -7 -7 -6 -6 -6 -6 -6 -6 -5 -5 -5 -5 -4 -4 -4 -4 -4 -3 -3 -3 -2 -1 ------- Run | Scr Mat Min Mat Min Exi Min Mat Fac Low Low Dat Pro Fac Ext Cet Arc Hub Fac Upp Upp Zhi Pro Fac Upp Upp War Pro Res Tes Res Acc Combat Hostiles Destroyed 271 | . 5 3 21 . . . 26 8 6 1 4 33 8 9 1 . 8 4 3 13 . 11 50 6 5 . 10 . 2 11 23 Guns 48 | . 5 3 9 . . . 11 4 4 1 . . 1 2 1 . 2 . . . . . 4 . . . . . . . 1 Cannons 117 | . . . 2 . . . 10 1 2 . . 6 7 7 . . 4 1 3 5 . 2 30 6 5 . 4 . . 9 13 AOE 94 | . . . 10 . . . 5 3 . . 4 27 . . . . 1 3 . 8 . 9 16 . . . 1 . . 2 5 Classes Destroyed 21 | . 2 1 7 . . . 1 2 . 1 . 3 . . . . . 1 . 1 . . 1 . . . . . . 1 . Worker 11 | . 1 1 1 . . . 4 . . . . . 1 . . . 3 . . . . . . . . . . . . . . Builder 9 | . . . 2 . . 1 . 1 . . . . . . . . 1 . . . . . 4 . . . . . . . . Tunneler 2 | . . . 1 . . . . . . . . . . . . . . . . . . . . . . . . . . . 1 Hauler 8 | . . . 2 . . . 2 1 . . . . . . . . . . . . . . 3 . . . . . . . . Recycler 9 | . . . 2 . . . 1 1 . . . . . 2 . . . 1 . . . . 1 . . . . . . . 1 Mechanic 2 | . . . . . . . 1 . . . . . . . . . . . . . . . 1 . . . . . . . . Operator 1 | . . . . . . . . . . . . . . . . . . . . . . . 1 . . . . . . . . Watcher 8 | . . . 1 . . . . 1 . . . . . . . . 1 . . . . . 4 . . . . . . . 1 Swarmer 66 | . . 3 6 . . . 13 . . . . 9 . 4 1 . . . . 1 . 4 16 2 . . 2 . . . 5 Saboteur 1 | . . . . . . . . . . . . . . . . . . 1 . . . . . . . . . . . . . Grunt 103 | . 5 . 10 . . . 9 4 4 . . 15 4 3 . . 6 2 3 7 . 5 13 . 2 . 5 . 1 5 . Brawler 11 | . . . 1 . . . . . . . . 5 . . . . . . . 1 . . 2 . . . . . . 2 . Duelist 5 | . . . . . . . . . . . . 2 . . . . . 1 . . . . 1 . . . 1 . . . . Protector 2 | . . . . . . . . . . . . 1 . . . . . . . . . . 1 . . . . . . . . Sentry 26 | . . . 4 . . . 4 2 . . . 1 1 2 . . 2 . . 1 . . 3 1 . . 1 . 1 2 1 Hunter 17 | . . . . . . . . 1 1 . . . . . . . . . . 2 . 2 2 . 2 . . . . 1 6 Programmer 31 | . . . . . . . . 1 1 . . . 3 . . . . . . . . . 12 2 1 . . . . . 11 Behemoth 2 | . . . . . . . . . . . . 1 . . . . . . . . . . . . . . 1 . . . . Enhanced Grunt 4 | . . . . . . . . . . . 4 . . . . . . . . . . . . . . . . . . . . Thief 1 | . . . . . . . . . . 1 . . . . . . . . . . . . . . . . . . . . . Thug 1 | . . . . . . . . . . . . . . . . . . . . . . . . . 1 . . . . . . Mutant 2 | . . . . . . . . . . . . . . . . . . . . 1 . . . 1 . . . . . . . Knight 1 | . . . . . . . . . . . . . . . . . . . . . . . . . . . . . . 1 . Best Kill Streak 13 | . 3 3 9 . . 1 13 5 4 1 4 7 3 2 1 . 6 4 2 6 . 6 13 3 3 . 5 . 1 4 7 Combat Bots Only 11 | . 3 3 5 . . . 10 3 4 1 4 7 3 2 1 . 5 4 2 6 . 6 11 3 3 . 5 . 1 4 7 Max Kills in Single Turn 5 | . 1 1 3 . . 1 5 2 2 1 1 4 1 1 1 . 3 2 1 2 . 3 4 1 1 . 1 . 1 1 4 Gunslinging 1 | . . . 1 . . . . . . . . . . . . . . . . . . . . . . . . . . . . Exploded 4 | . . . 2 . . . 2 2 . . 1 4 . . . . 1 2 . 2 . 3 3 . . . 1 . . 1 4 Melee . | . . . . . . . . . . . . . . . . . . . . . . . . . . . . . . . . Uniques/NPCs Destroyed 1 | . . . . . . . . . . . . . . . 1 . . . . . . . . . . . . . . . . A7 (-6/Cetus) Combat | -11 -10 -10 -9 -9 -9 -8 -8 -7 -7 -7 -7 -6 -6 -6 -6 -6 -6 -5 -5 -5 -5 -4 -4 -4 -4 -4 -3 -3 -3 -2 -1 -------- Run | Scr Mat Min Mat Min Exi Min Mat Fac Low Low Dat Pro Fac Ext Cet Arc Hub Fac Upp Upp Zhi Pro Fac Upp Upp War Pro Res Tes Res Acc Damage Taken 25255 | . 303 255 1112 . . . 788 855 320 . 741 1055 912 1228 97 1189 963 181 58 411 . 462 3463 386 176 1119 941 . 1642 657 5941 Core 2046 | . 73 57 116 . . . 67 150 16 . . 136 65 193 . 76 79 9 10 10 . 45 202 27 18 65 12 . 36 49 535 Absorbed by Shields 1766 | . . . . . . . . . . . . . . 126 27 . 23 168 58 194 . 270 634 . . . . . 147 119 . Reduced by Siege Mode 333 | . . . . . . . . . . . . . . . . . . . . 4 . 6 180 . . . 61 . . 7 75 Core Remaining (%) 75 | 100 . 48 . . . 71 87 . . . . 56 . . . . 51 . . . . 92 . . . . 71 . 97 96 66 Volleys Fired 883 | . 15 16 49 . . 2 59 33 14 5 12 34 52 55 32 4 32 17 19 29 . 22 139 1 11 . 25 3 10 60 133 Largest 4 | . 2 2 3 . . 3 3 3 4 4 2 4 3 4 3 3 2 3 1 1 . 1 2 1 1 . 2 1 2 3 3 Hottest 295 | . 40 40 93 . . 148 148 136 164 164 72 175 136 174 73 73 92 195 57 90 . 57 167 110 110 . 162 110 240 263 295 Shots Fired 1441 | . 30 32 89 . . 6 152 54 47 17 16 62 72 104 96 8 42 23 19 29 . 22 195 23 24 . 46 3 14 79 137 Gun 536 | . 30 32 69 . . 2 92 16 25 9 1 1 12 61 96 8 14 . . . . . 48 . . . . . 3 . 17 Cannon 777 | . . . 3 . . 4 56 18 22 8 . 38 60 43 . . 28 22 19 20 . 9 133 23 24 . 46 3 11 75 112 Launcher 128 | . . . 17 . . . 4 20 . . 15 23 . . . . . 1 . 9 . 13 14 . . . . . . 4 8 Special . | . . . . . . . . . . . . . . . . . . . . . . . . . . . . . . . . Kinetic 860 | . 30 32 46 . . 2 92 23 37 12 1 38 72 81 96 8 26 13 19 18 . 9 147 22 12 . . . . 16 8 Thermal 330 | . . . 26 . . 4 56 11 10 5 . 1 . 23 . . . 9 . 2 . . 34 1 12 . 4 3 6 40 83 Explosive 128 | . . . 17 . . . 4 20 . . 15 23 . . . . . 1 . 9 . 13 14 . . . . . . 4 8 Electromagnetic 123 | . . . . . . . . . . . . . . . . . 16 . . . . . . . . . 42 . 8 19 38 Robot Hit Streak 35 | . 7 6 10 . . 3 12 10 9 2 3 9 6 21 2 5 10 7 6 15 . 28 35 16 11 . 19 . 20 7 21 Robot Miss Streak 11 | . 2 4 3 . . 2 6 7 6 11 6 8 5 3 6 1 2 3 6 2 . 2 4 1 2 . 2 . 1 3 4 Penetration Max 2 | . . . . . . . . . . . . . . . . . 1 . . . . . 2 . . . . . . . . Secondary Targets 7 | . 1 . 4 . . . 1 . . . . . . . 1 . . . . . . . . . . . . . . . . Max Gunslinging Chain 1 | . 1 . 1 . . . 1 . . . . . . . 1 . . . . . . . . . . . . . . . . Autonomous 88 | . . . . . . . . . . . . . . . . . . . . . . . 53 22 13 . . . . . . Shots Hit Robots 862 | . 23 15 55 . . 2 93 28 32 7 3 44 52 65 5 7 27 10 7 23 . 16 152 21 17 . 41 . 7 31 79 Core Hits 670 | . 12 5 56 . . 1 47 28 22 2 26 82 25 31 23 4 26 10 4 31 . 24 120 6 8 . 12 . 2 27 36 Critical Hits 66 | . . . . . . . 2 1 1 . . 1 1 . 1 . 2 5 5 8 . 6 26 2 2 . 1 . . . 2 Critical Kills 22 | . . . . . . . . . . . . . 1 . . . 1 1 3 5 . 2 8 1 . . . . . . . Critical Parts Destroyed 42 | . . . . . . . 2 1 1 . . 1 . . 1 . 1 4 2 3 . 4 17 1 1 . 1 . . . 2 Melee Attacks . | . . . . . . . . . . . . . . . . . . . . . . . . . . . . . . . . Impact . | . . . . . . . . . . . . . . . . . . . . . . . . . . . . . . . . Slashing . | . . . . . . . . . . . . . . . . . . . . . . . . . . . . . . . . Piercing . | . . . . . . . . . . . . . . . . . . . . . . . . . . . . . . . . Sneak Attacks . | . . . . . . . . . . . . . . . . . . . . . . . . . . . . . . . . Combat Hostiles . | . . . . . . . . . . . . . . . . . . . . . . . . . . . . . . . . Follow-up Attacks . | . . . . . . . . . . . . . . . . . . . . . . . . . . . . . . . . Damage Inflicted 43324 | . 245 185 1908 . . 35 2068 1372 642 129 1737 3974 1300 1266 1204 107 1382 830 179 1504 . 1780 9960 1696 1122 . 1517 . 229 2193 4760 Guns 6925 | . 245 185 639 . . . 793 188 336 81 . 32 145 845 1204 107 289 . . . . . 1574 . . . . . . . 262 Cannons 19907 | . . . 52 . . 35 691 380 306 48 . 580 1155 421 . . 490 298 179 352 . 140 5620 1696 1122 . 1361 . 229 1274 3478 Explosions 16465 | . . . 1217 . . . 584 804 . . 1737 3362 . . . . 586 532 . 1152 . 1640 2756 . . . 156 . . 919 1020 Melee . | . . . . . . . . . . . . . . . . . . . . . . . . . . . . . . . . Ramming 27 | . . . . . . . . . . . . . . . . . 17 . . . . . 10 . . . . . . . . Kinetic 17003 | . 245 185 453 . . . 793 359 499 107 . 580 1300 842 1204 107 386 223 179 352 . 140 6052 1696 749 . . . . 267 285 Thermal 8241 | . . . 238 . . 35 691 391 143 22 . 32 . 424 . . 66 440 . . . . 1492 . 373 . 279 . . 999 2616 Explosive 14728 | . . . 1217 . . . 584 622 . . 1737 3362 . . . . . 167 . 1152 . 1640 2308 . . . . . . 919 1020 Electromagnetic 3325 | . . . . . . . . . . . . . . . . . 913 . . . . . 98 . . . 1238 . 229 8 839 Impact . | . . . . . . . . . . . . . . . . . . . . . . . . . . . . . . . . Slashing . | . . . . . . . . . . . . . . . . . . . . . . . . . . . . . . . . Piercing . | . . . . . . . . . . . . . . . . . . . . . . . . . . . . . . . . Highest Corruption 30 | . . . 4 4 4 4 . 8 9 9 9 10 1 5 5 5 6 2 2 4 4 4 5 5 5 6 . . . . 30 Average Corruption 6 | . . . 4 4 4 4 . 7 8 9 9 9 1 2 5 5 5 2 2 2 4 4 3 5 5 5 . . . . 17 Corruption Purged . | . . . . . . . . . . . . . . . . . . . . . . . . . . . . . . . . Effects 320 | . . . 2 2 7 2 . 1 28 9 6 66 . 15 18 3 10 4 2 8 3 9 25 11 15 1 . . . . 73 Message Errors 72 | . . . 1 1 . 1 . . 5 2 1 8 . 5 5 . 6 2 . 4 1 3 5 5 2 . . . . . 15 Matter Fused 59 | . . . 1 1 4 . . 1 5 2 1 16 . 2 . 1 . . . 1 1 4 3 3 3 . . . . . 10 Heat Flow Errors 30 | . . . . . 3 . . . 3 1 1 5 . 1 1 . . 1 . 1 1 . 3 1 4 . . . . . 4 Energy Discharges 31 | . . . . . . . . . 2 . . 8 . 1 3 . . 1 2 . . 1 5 2 3 . . . . . 3 Parts Rejected 3 | . . . . . . . . . . . . . . . . . . . . . . . . . . . . . . . 3 Data Loss (minor) 26 | . . . . . . 1 . . 2 2 1 7 . 2 1 1 . . . 2 . . 2 . 2 . . . . . 3 Data Loss (major) 10 | . . . . . . . . . 2 1 . 2 . 1 1 . 1 . . . . . 1 . . 1 . . . . . Misfires 13 | . . . . . . . . . 2 . 1 3 . . 1 . 1 . . . . . 2 . 1 . . . . . 2 Alerts 2 | . . . . . . . . . . . . 2 . . . . . . . . . . . . . . . . . . . Misdirections 12 | . . . . . . . . . . . . 5 . . . . . . . . . . . . . . . . . . 7 Targeting Errors 46 | . . . . . . . . . 6 . 1 7 . 3 5 1 2 . . . . 1 2 . . . . . . . 18 Weapon Failures 16 | . . . . . . . . . 1 1 . 3 . . 1 . . . . . . . 2 . . . . . . . 8 Overload Shots 3 | . . . . . . . . . . . . . . . . . . . . . . . . . . . . . 3 . . Overflow Damage 2213 | . . . 57 . . . 16 171 28 . 39 25 35 . . . 53 84 . 60 . 3 835 387 . . 100 . . 140 180 Projectiles 1412 | . . . 2 . . . . . 28 . . 2 35 . . . . . . . . . 651 387 . . 100 . . 49 158 Explosions 801 | . . . 55 . . . 16 171 . . 39 23 . . . . 53 84 . 60 . 3 184 . . . . . . 91 22 Melee . | . . . . . . . . . . . . . . . . . . . . . . . . . . . . . . . . Knockbacks 57 | . . . . . . . . 1 1 1 . 6 6 1 . . 1 6 5 . . 2 13 8 . . . . . 4 2 Impact . | . . . . . . . . . . . . . . . . . . . . . . . . . . . . . . . . Kinetic 52 | . . . . . . . . 1 1 1 . 6 6 1 . . 1 6 4 . . 2 13 5 . . . . . 3 2 Secondary 5 | . . . . . . . . . . . . . . . . . . . 1 . . . . 3 . . . . . 1 . Self-Inflicted Damage 1058 | . . . . . . . . 129 . . 25 231 . . . . 99 157 . 7 . 45 188 . . . 88 . . 89 . Shots 26 | . . . . . . . . 2 . . 1 10 . . . . 1 2 . 1 . 2 4 . . . 2 . . 1 . Rammed 4 | . . . . . . . . . . . . . . . . . 3 . . . . . 1 . . . . . . . . Targets Rammed 4 | . . . . . . . . . . . . . . . . . 3 . . . . . 1 . . . . . . . . Kicked . | . . . . . . . . . . . . . . . . . . . . . . . . . . . . . . . . Crushed . | . . . . . . . . . . . . . . . . . . . . . . . . . . . . . . . . Highest Temperature 405 | . 26 12 285 . 265 96 365 142 332 228 174 397 326 405 205 . 26 195 8 199 160 . 174 138 163 . 196 58 240 197 198 Average Temperature 91 | . 11 5 74 . 111 52 104 50 129 137 35 102 151 141 120 . 9 61 4 35 92 . 37 50 37 . 116 32 95 90 89 Received Heat Transfer 3320 | . 123 . 426 . . . 243 12 108 . 96 201 207 92 . . 350 21 24 82 . 44 403 47 18 228 147 . 309 130 9 Effects 18 | . . . . . . . 7 . 3 . . 4 4 . . . . . . . . . . . . . . . . . . Shutdowns 3 | . . . . . . . 1 . . . . 2 . . . . . . . . . . . . . . . . . . . Energy Bleed 3 | . . . . . . . 2 . . . . . 1 . . . . . . . . . . . . . . . . . . Interference 11 | . . . . . . . 3 . 3 . . 2 3 . . . . . . . . . . . . . . . . . . Short Circuit 1 | . . . . . . . 1 . . . . . . . . . . . . . . . . . . . . . . . . Siege Activations 31 | . . . . . . . . . . . . . . . . . . . . 4 . 4 9 . . . 3 . . 2 9 Total Turns 481 | . . . . . . . . . . . . . . . . . . . . 33 . 29 212 . . . 45 . . 22 140 Longest Duration 83 | . . . . . . . . . . . . . . . . . . . . 11 . 10 83 . . . 22 . . 16 32 Robots Corrupted 12 | . . . . . . . . . . . . . . . . . 1 . . . . . . . . . 5 . 2 . 4 Combat Hostiles 12 | . . . . . . . . . . . . . . . . . 1 . . . . . . . . . 5 . 2 . 4 Parts Fried 24 | . . . . . . . . . . . . . . . . . 2 . . . . . . . . . 14 . 4 . 4 Impact Corruptions 4 | . . . . . . . . . . . . . . . . . . . . . . . . 4 . . . . . . . Robots Melted . | . . . . . . . . . . . . . . . . . . . . . . . . . . . . . . . . Combat Hostiles . | . . . . . . . . . . . . . . . . . . . . . . . . . . . . . . . . Parts Melted 8 | . . . . . . . 1 . . . . . . 2 . . . . . . . . 1 . 1 . . . . . 3 Heat Transferred 7660 | . . . 666 . . 74 1295 433 222 37 . 75 . 757 . . 100 400 . . . . 887 . 225 . 175 . . 606 1708 Parts Sabotaged 16 | . . . . . . . . . . . . . . . . . . . . . . . 3 . . 3 . . 7 3 . Parts Stolen 1 | . . . . . . . . . . 1 . . . . . . . . . . . . . . . . . . . . . Parts Stripped . | . . . . . . . . . . . . . . . . . . . . . . . . . . . . . . . . Power Chain Reactions 4 | . . . . . . . . . . . . . . . . . 2 . . . . . . . . . 2 . . . . Missiles Intercepted . | . . . . . . . . . . . . . . . . . . . . . . . . . . . . . . . . Alert | -11 -10 -10 -9 -9 -9 -8 -8 -7 -7 -7 -7 -6 -6 -6 -6 -6 -6 -5 -5 -5 -5 -4 -4 -4 -4 -4 -3 -3 -3 -2 -1 ------- Run | Scr Mat Min Mat Min Exi Min Mat Fac Low Low Dat Pro Fac Ext Cet Arc Hub Fac Upp Upp Zhi Pro Fac Upp Upp War Pro Res Tes Res Acc Peak Influence 1776 | . 217 149 361 37 . 5 534 665 . . . . 439 472 535 438 787 380 . . . . 1374 . . . . 165 1671 1776 1553 Average Influence 516 | . 67 93 193 37 . 1 133 326 . . . . 217 232 329 245 347 167 . . . . 673 . . . . 152 1620 1511 1298 Maximum Alert Level 5 | . 1 . 1 . . . 2 2 . . . . 2 2 2 2 3 1 . . . . 4 . . . . . 5 5 4 Low Security (%) 35 | 100 91 100 60 100 . 100 79 13 . . . . 55 30 8 52 42 48 . . . . 15 . . . . 100 . . . Level 1 28 | . 8 . 39 . . . 13 58 . . . . 25 63 66 25 18 51 . . . . 25 . . . . . . . . Level 2 8 | . . . . . . . 7 27 . . . . 18 6 24 21 37 . . . . . 12 . . . . . . . . Level 3 5 | . . . . . . . . . . . . . . . . . 1 . . . . . 27 . . . . . . . 14 Level 4 18 | . . . . . . . . . . . . . . . . . . . . . . . 19 . . . . . . 81 85 Level 5 1 | . . . . . . . . . . . . . . . . . . . . . . . . . . . . . . 18 . High Security . | . . . . . . . . . . . . . . . . . . . . . . . . . . . . . . . . Max Security 1 | . . . . . . . . . . . . . . . . . . . . . . . . . . . . . 99 . . Squads Dispatched 52 | . 2 . 1 . . . 4 3 . . . 1 3 3 . . 4 1 . . . . 10 . . . . . 12 1 7 Investigation 6 | . . . . . . . 2 . . . . . 1 1 . . 1 . . . . . . . . . . . . 1 . Extermination 11 | . . . . . . . . 1 . . . . 2 . . . . . . . . . 5 . . . . . . . 3 Reinforcement 14 | . 2 . 1 . . . 2 2 . . . . . 2 . . 1 . . . . . 3 . . . . . . . 1 Assault 17 | . . . . . . . . . . . . 1 . . . . 1 1 . . . . 2 . . . . . 12 . . Garrison 4 | . . . . . . . . . . . . . . . . . 1 . . . . . . . . . . . . . 3 Intercept . | . . . . . . . . . . . . . . . . . . . . . . . . . . . . . . . . Construction Impeded 3 | . . . . . . . . . . . . . . 1 . . . . . . . . 2 . . . . . . . . Haulers Reinforced 1 | . . . . . . . . 1 . . . . . . . . . . . . . . . . . . . . . . . Stealth | -11 -10 -10 -9 -9 -9 -8 -8 -7 -7 -7 -7 -6 -6 -6 -6 -6 -6 -5 -5 -5 -5 -4 -4 -4 -4 -4 -3 -3 -3 -2 -1 --------- Run | Scr Mat Min Mat Min Exi Min Mat Fac Low Low Dat Pro Fac Ext Cet Arc Hub Fac Upp Upp Zhi Pro Fac Upp Upp War Pro Res Tes Res Acc Distress Signals 24 | . . . 2 . . . 4 1 . . . . . 4 2 . 2 . . . . . 1 . . 2 . . 3 3 . Communications Jammed . | . . . . . . . . . . . . . . . . . . . . . . . . . . . . . . . . Distress Signals . | . . . . . . . . . . . . . . . . . . . . . . . . . . . . . . . . Times Spotted 443 | . 10 3 30 . . . 36 10 6 1 5 32 9 31 14 2 19 9 5 14 . 11 68 9 3 22 11 . 42 16 25 Peak Tracking Total 35 | . 4 3 8 . . . 8 4 4 1 4 7 4 4 5 6 5 5 3 7 . 6 9 6 1 19 5 . 35 5 5 Tactical Retreats 21 | . . . 3 . . . 3 . . . . 1 . 1 . . 2 . 2 2 . . 1 1 . 1 1 . 2 . 1 Traps | -11 -10 -10 -9 -9 -9 -8 -8 -7 -7 -7 -7 -6 -6 -6 -6 -6 -6 -5 -5 -5 -5 -4 -4 -4 -4 -4 -3 -3 -3 -2 -1 ------- Run | Scr Mat Min Mat Min Exi Min Mat Fac Low Low Dat Pro Fac Ext Cet Arc Hub Fac Upp Upp Zhi Pro Fac Upp Upp War Pro Res Tes Res Acc Traps Triggered 19 | . 2 . . . . . . . . . . . . 4 . . . 5 . . . . 5 . . . . . 2 . 1 Indirectly 2 | . . . . . . . . . . . . . . . . . . . . . . . 2 . . . . . . . . Trap Hack Attempts . | . . . . . . . . . . . . . . . . . . . . . . . . . . . . . . . . Triggered . | . . . . . . . . . . . . . . . . . . . . . . . . . . . . . . . . Disarmed . | . . . . . . . . . . . . . . . . . . . . . . . . . . . . . . . . Reprogrammed . | . . . . . . . . . . . . . . . . . . . . . . . . . . . . . . . . Reused . | . . . . . . . . . . . . . . . . . . . . . . . . . . . . . . . . Traps Extracted . | . . . . . . . . . . . . . . . . . . . . . . . . . . . . . . . . Installed . | . . . . . . . . . . . . . . . . . . . . . . . . . . . . . . . . Triggered 13 | . . . . . . . . . . . . . . . . . . . . . . . . 2 1 10 . . . . . Machines | -11 -10 -10 -9 -9 -9 -8 -8 -7 -7 -7 -7 -6 -6 -6 -6 -6 -6 -5 -5 -5 -5 -4 -4 -4 -4 -4 -3 -3 -3 -2 -1 ---------- Run | Scr Mat Min Mat Min Exi Min Mat Fac Low Low Dat Pro Fac Ext Cet Arc Hub Fac Upp Upp Zhi Pro Fac Upp Upp War Pro Res Tes Res Acc Machines Disabled 57 | . . . 1 . . . 1 11 . . . 1 . 2 . 3 8 3 . 2 . . 16 1 . . . . . 4 4 Max in Single Turn 5 | . . . 1 . . . 1 5 . . . 1 . 1 . 1 4 2 . 1 . . 3 1 . . . . . 1 1 Garrison Access 9 | . . . . . . . 1 . . . . . 1 . . . 1 2 . . . . 1 . . . . . . 3 . Network Hub 1 | . . . . . . . . . . . . . . . . . 1 . . . . . . . . . . . . . . Machines Sabotaged . | . . . . . . . . . . . . . . . . . . . . . . . . . . . . . . . . Garrisons Compromised . | . . . . . . . . . . . . . . . . . . . . . . . . . . . . . . . . Overloaded Fab Kills . | . . . . . . . . . . . . . . . . . . . . . . . . . . . . . . . . Fab Network Shutdowns 1 | . . . . . . . . . . . . . 1 . . . . . . . . . . . . . . . . . . Hacking | -11 -10 -10 -9 -9 -9 -8 -8 -7 -7 -7 -7 -6 -6 -6 -6 -6 -6 -5 -5 -5 -5 -4 -4 -4 -4 -4 -3 -3 -3 -2 -1 --------- Run | Scr Mat Min Mat Min Exi Min Mat Fac Low Low Dat Pro Fac Ext Cet Arc Hub Fac Upp Upp Zhi Pro Fac Upp Upp War Pro Res Tes Res Acc Machines Accessed 65 | . 2 . 2 . 1 . 5 4 . . 4 . 6 11 4 . 1 7 . 1 4 . 6 . . 1 . 1 . 2 3 Terminals 34 | . 2 . 2 . . . 4 1 . . . . 3 9 4 . . 3 . . . . 3 . . . . . . . 3 Fabricators 3 | . . . . . . . . 1 . . . . 1 . . . . . . . . . 1 . . . . . . . . Repair Stations 3 | . . . . . . . . . . . . . 1 . . . . . . . . . 1 . . . . 1 . . . Recycling Units 7 | . . . . . . . . 2 . . . . . 2 . . . 2 . . . . 1 . . . . . . . . Scanalyzers 1 | . . . . . . . . . . . . . . . . . . 1 . . . . . . . . . . . . . Garrison Access 6 | . . . . . . . 1 . . . . . 1 . . . 1 1 . . . . . . . . . . . 2 . Total Hacks 196 | . 4 . 6 . 1 . 9 6 . . 25 . 14 36 9 . 3 26 . 1 17 . 22 . . 1 . 3 . 8 5 Successful 110 | . 1 . 3 . 1 . 1 4 . . 25 . 8 18 3 . 1 9 . 1 17 . 13 . . 1 . 1 . 1 2 Failed 86 | . 3 . 3 . . . 8 2 . . . . 6 18 6 . 2 17 . . . . 9 . . . . 2 . 7 3 Catastrophic 18 | . 2 . 1 . . . 4 . . . . . 2 1 3 . . 3 . . . . 1 . . . . . . . 1 Database Lockouts . | . . . . . . . . . . . . . . . . . . . . . . . . . . . . . . . . Manual 75 | . 2 . 4 . 1 . 4 3 . . . . 6 20 10 . 1 6 . . . . 5 . . 1 . . . 8 4 Terminals 98 | . 4 . 6 . . . 6 3 . . . . 7 33 9 . . 12 . . . . 13 . . . . . . . 5 Fabricators 7 | . . . . . . . . 1 . . . . 3 . . . . . . . . . 3 . . . . . . . . Repair Stations 9 | . . . . . . . . . . . . . 3 . . . . . . . . . 3 . . . . 3 . . . Recycling Units 15 | . . . . . . . . 2 . . . . . 3 . . . 7 . . . . 3 . . . . . . . . Scanalyzers 6 | . . . . . . . . . . . . . . . . . . 6 . . . . . . . . . . . . . Garrison Access 16 | . . . . . . . 3 . . . . . 1 . . . 3 1 . . . . . . . . . . . 8 . Terminal Hacks 75 | . 1 . 3 . 1 . . 1 . . 25 . . 12 1 . . 4 . 1 17 . 7 . . 1 . . . . 1 Record 17 | . . . . . . . . . . . 11 . . . . . . . . 1 5 . . . . . . . . . . Part Schematic 11 | . . . . . . . . . . . 7 . . . . . . . . . 4 . . . . . . . . . . Robot Schematic 4 | . . . . . . . . . . . 4 . . . . . . . . . . . . . . . . . . . . Robot Analysis 4 | . . . . . . . . . . . . . . . . . . . . . 4 . . . . . . . . . . Prototype ID Bank 7 | . . . . . . . . . . . 3 . . . . . . . . . 4 . . . . . . . . . . Open Door 9 | . . . . . . . . . . . . . . 8 . . . . . . . . . . . 1 . . . . . Level Access Points 1 | . . . . . . . . . . . . . . . . . . . . . . . . . . . . . . . 1 Branch Access Points 5 | . 1 . 1 . . . . 1 . . . . . . . . . 1 . . . . 1 . . . . . . . . Alert Level 1 | . . . . . . . . . . . . . . . . . . . . . . . 1 . . . . . . . . Unreport Threat 11 | . . . 2 . . . . . . . . . . 3 1 . . 3 . . . . 2 . . . . . . . . Locate Traps 2 | . . . . . . . . . . . . . . 1 . . . . . . . . 1 . . . . . . . . Zone Layout 2 | . . . . . . . . . . . . . . . . . . . . . . . 2 . . . . . . . . EX-Prototype ID Bank 1 | . . . . . 1 . . . . . . . . . . . . . . . . . . . . . . . . . . Fabricator Hacks 5 | . . . . . . . . 1 . . . . 2 . . . . . . . . . 2 . . . . . . . . Load Schematic 2 | . . . . . . . . . . . . . 1 . . . . . . . . . 1 . . . . . . . . Build 3 | . . . . . . . . 1 . . . . 1 . . . . . . . . . 1 . . . . . . . . Repair Station Hacks 5 | . . . . . . . . . . . . . 3 . . . . . . . . . 1 . . . . 1 . . . Scan Component 4 | . . . . . . . . . . . . . 2 . . . . . . . . . 1 . . . . 1 . . . Repair 1 | . . . . . . . . . . . . . 1 . . . . . . . . . . . . . . . . . . Recycling Unit Hacks 4 | . . . . . . . . 2 . . . . . . . . . 1 . . . . 1 . . . . . . . . Retrieve Components 4 | . . . . . . . . 2 . . . . . . . . . 1 . . . . 1 . . . . . . . . Scanalyzer 3 | . . . . . . . . . . . . . . . . . . 3 . . . . . . . . . . . . . Insert Component 2 | . . . . . . . . . . . . . . . . . . 2 . . . . . . . . . . . . . Analyze 1 | . . . . . . . . . . . . . . . . . . 1 . . . . . . . . . . . . . Garrison Access Hacks 3 | . . . . . . . 1 . . . . . 1 . . . . 1 . . . . . . . . . . . . . Seal Access 3 | . . . . . . . 1 . . . . . 1 . . . . 1 . . . . . . . . . . . . . Unauthorized Hacks 52 | . . . . . . . . . . . . . 6 17 5 . 2 4 . . . . 4 . . . . . . 9 5 Terminals 13 | . . . . . . . . . . . . . 2 6 2 . . . . . . . 2 . . . . . . . 1 Track 1 | . . . . . . . . . . . . . . 1 . . . . . . . . . . . . . . . . . Botnet 10 | . . . . . . . . . . . . . 2 4 2 . . . . . . . 1 . . . . . . . 1 Disrupt 2 | . . . . . . . . . . . . . . 1 . . . . . . . . 1 . . . . . . . . Fabricators . | . . . . . . . . . . . . . . . . . . . . . . . . . . . . . . . . Repair Stations . | . . . . . . . . . . . . . . . . . . . . . . . . . . . . . . . . Recycling Units . | . . . . . . . . . . . . . . . . . . . . . . . . . . . . . . . . Scanalyzers . | . . . . . . . . . . . . . . . . . . . . . . . . . . . . . . . . Garrison Access 2 | . . . . . . . . . . . . . . . . . 1 . . . . . . . . . . . . 1 . Jam 2 | . . . . . . . . . . . . . . . . . 1 . . . . . . . . . . . . 1 . Data Cores Recovered . | . . . . . . . . . . . . . . . . . . . . . . . . . . . . . . . . Used . | . . . . . . . . . . . . . . . . . . . . . . . . . . . . . . . . Hacking Detections 46 | . 2 . 2 . . . 4 2 . . . . 5 10 4 . 1 6 . . . . 5 . . . . 1 . 2 2 Full Trace Events 6 | . 2 . . . . . 2 . . . . . 1 1 . . . . . . . . . . . . . . . . . Feedback Events . | . . . . . . . . . . . . . . . . . . . . . . . . . . . . . . . . Feedback Blocked . | . . . . . . . . . . . . . . . . . . . . . . . . . . . . . . . . Robot Schematics Acquired 4 | . . . . . . . . . . . 4 . . . . . . . . . . . . . . . . . . . . Robots Built . | . . . . . . . . . . . . . . . . . . . . . . . . . . . . . . . . Matter . | . . . . . . . . . . . . . . . . . . . . . . . . . . . . . . . . Time . | . . . . . . . . . . . . . . . . . . . . . . . . . . . . . . . . Total Robot Build Rating . | . . . . . . . . . . . . . . . . . . . . . . . . . . . . . . . . Part Schematics Acquired 12 | . . . . . . . . . . . 7 . . . . . . 1 . . 4 . . . . . . . . . . Parts Built 3 | . . . . . . . . 1 . . . . 1 . . . . . . . . . 1 . . . . . . . . Matter 859 | . . . . . . . . 190 . . . . 285 . . . . . . . . . 384 . . . . . . . . Time 199 | . . . . . . . . 47 . . . . 50 . . . . . . . . . 102 . . . . . . . . Total Part Build Rating 18 | . . . . . . . . 5 . . . . 5 . . . . . . . . . 8 . . . . . . . . Parts Repaired 1 | . . . . . . . . . . . . . 1 . . . . . . . . . . . . . . . . . . Time 26 | . . . . . . . . . . . . . 26 . . . . . . . . . . . . . . . . . . Parts Recycled . | . . . . . . . . . . . . . . . . . . . . . . . . . . . . . . . . Recycled Matter . | . . . . . . . . . . . . . . . . . . . . . . . . . . . . . . . . Retrieved Matter . | . . . . . . . . . . . . . . . . . . . . . . . . . . . . . . . . Retrieved Components 5 | . . . . . . . . 3 . . . . . . . . . 1 . . . . 1 . . . . . . . . Parts Scanalyzed 1 | . . . . . . . . . . . . . . . . . . 1 . . . . . . . . . . . . . Part Schematics Acquired 1 | . . . . . . . . . . . . . . . . . . 1 . . . . . . . . . . . . . Parts Damaged . | . . . . . . . . . . . . . . . . . . . . . . . . . . . . . . . . Bothacking | -11 -10 -10 -9 -9 -9 -8 -8 -7 -7 -7 -7 -6 -6 -6 -6 -6 -6 -5 -5 -5 -5 -4 -4 -4 -4 -4 -3 -3 -3 -2 -1 ------------ Run | Scr Mat Min Mat Min Exi Min Mat Fac Low Low Dat Pro Fac Ext Cet Arc Hub Fac Upp Upp Zhi Pro Fac Upp Upp War Pro Res Tes Res Acc Used RIF Installer . | . . . . . . . . . . . . . . . . . . . . . . . . . . . . . . . . Robots Hacked . | . . . . . . . . . . . . . . . . . . . . . . . . . . . . . . . . Non-combat . | . . . . . . . . . . . . . . . . . . . . . . . . . . . . . . . . Combat . | . . . . . . . . . . . . . . . . . . . . . . . . . . . . . . . . Robot Hacks Applied . | . . . . . . . . . . . . . . . . . . . . . . . . . . . . . . . . Relay Couplers Released 9 | . . . . . . . . . . . . . . . . . . 1 . . . . 6 . . . . . . 2 . Machine Destruction 5 | . . . . . . . . . . . . . . . . . . 1 . . . . 2 . . . . . . 2 . Programmers 4 | . . . . . . . . . . . . . . . . . . . . . . . 4 . . . . . . . . Robots Rewired 16 | . . . . . . . . . . . . 2 . 11 . . . . . . . . . 3 . . . . . . . Allies Hacked 1 | . . . . . . . . . . . . . . . . . . . . . . . . . 1 . . . . . . Hacks Repelled . | . . . . . . . . . . . . . . . . . . . . . . . . . . . . . . . . Allies | -11 -10 -10 -9 -9 -9 -8 -8 -7 -7 -7 -7 -6 -6 -6 -6 -6 -6 -5 -5 -5 -5 -4 -4 -4 -4 -4 -3 -3 -3 -2 -1 -------- Run | Scr Mat Min Mat Min Exi Min Mat Fac Low Low Dat Pro Fac Ext Cet Arc Hub Fac Upp Upp Zhi Pro Fac Upp Upp War Pro Res Tes Res Acc Total Allies 38 | . . . . . . . . . . . . 2 . 22 5 3 . 3 . . . . . 3 . . . . . . . Largest Group 9 | . . . . . . . . . . . . 1 . 9 9 8 . 3 . . . . . 3 3 2 . . . . . Highest-Rated Group 770 | . . . . . . . . . . . . 32 . 401 684 770 . 93 . . . . . 138 138 90 . . . . . Highest-Rated Ally 156 | . . . . . . . . . . . . 32 . 156 156 122 . 31 . . . . . 46 46 46 . . . . . Total Orders . | . . . . . . . . . . . . . . . . . . . . . . . . . . . . . . . . Ally Attacks 305 | . . . . . . . . . . . . 2 . 132 101 37 . 18 . . . . . . 15 . . . . . . Total Damage 7837 | . . . . . . . . . . . . 35 . 3177 2622 1314 . 331 . . . . . . 358 . . . . . . Kills 60 | . . . . . . . . . . . . . . 29 19 9 . 2 . . . . . . 1 . . . . . . Allies Corrupted 2 | . . . . . . . . . . . . . . . . . . . . . . . . . . 2 . . . . . Allies Melted . | . . . . . . . . . . . . . . . . . . . . . . . . . . . . . . . . Intel | -11 -10 -10 -9 -9 -9 -8 -8 -7 -7 -7 -7 -6 -6 -6 -6 -6 -6 -5 -5 -5 -5 -4 -4 -4 -4 -4 -3 -3 -3 -2 -1 ------- Run | Scr Mat Min Mat Min Exi Min Mat Fac Low Low Dat Pro Fac Ext Cet Arc Hub Fac Upp Upp Zhi Pro Fac Upp Upp War Pro Res Tes Res Acc Robot Analysis Total 4 | . . . . . . . . . . . . . . . . . . . . . 4 . . . . . . . . . . Derelict Logs Recovered 7 | . . 1 . 1 . . . . 1 . . 2 . . . . . . 1 . . 1 . . . . . . . . . Drone Launches . | . . . . . . . . . . . . . . . . . . . . . . . . . . . . . . . . Drone Recoveries . | . . . . . . . . . . . . . . . . . . . . . . . . . . . . . . . . Exploration | -11 -10 -10 -9 -9 -9 -8 -8 -7 -7 -7 -7 -6 -6 -6 -6 -6 -6 -5 -5 -5 -5 -4 -4 -4 -4 -4 -3 -3 -3 -2 -1 ------------- Run | Scr Mat Min Mat Min Exi Min Mat Fac Low Low Dat Pro Fac Ext Cet Arc Hub Fac Upp Upp Zhi Pro Fac Upp Upp War Pro Res Tes Res Acc Turns Passed 18856 | 69 265 292 754 111 262 95 773 717 606 305 163 1341 1271 1218 513 78 375 1234 403 631 225 392 1789 530 553 908 390 174 203 1015 1201 Spaces Moved 9656 | 38 138 154 440 100 235 83 468 528 343 175 80 518 451 450 203 40 132 706 224 325 135 199 770 267 295 495 225 137 146 600 556 Core 6 | 2 . . 4 . . . . . . . . . . . . . . . . . . . . . . . . . . . . Treads 6170 | 36 138 154 139 . . . . 14 343 175 80 518 218 325 203 40 132 706 224 325 135 199 770 267 295 495 71 . 1 106 61 Legs 233 | . . . . . . . . . . . . . 233 . . . . . . . . . . . . . . . . . . Wheels 3247 | . . . 297 100 235 83 468 514 . . . . . 125 . . . . . . . . . . . . 154 137 145 494 495 Hover . | . . . . . . . . . . . . . . . . . . . . . . . . . . . . . . . . Flight . | . . . . . . . . . . . . . . . . . . . . . . . . . . . . . . . . Fastest Speed 50 | 50 160 160 50 110 110 90 90 105 165 165 165 200 200 140 180 160 160 160 163 163 163 163 160 180 180 160 120 120 110 120 100 Average Speed 159 | 154 160 160 113 110 110 104 113 116 165 165 173 230 229 181 180 174 188 166 163 163 163 163 165 180 180 179 132 120 121 137 135 Slowest Speed 240 | 160 160 160 160 110 110 110 130 165 165 165 200 240 240 220 180 180 200 180 163 163 163 163 180 180 180 180 180 120 180 180 200 Overloaded Moves . | . . . . . . . . . . . . . . . . . . . . . . . . . . . . . . . . Propulsion Burnouts . | . . . . . . . . . . . . . . . . . . . . . . . . . . . . . . . . Robots Hopped . | . . . . . . . . . . . . . . . . . . . . . . . . . . . . . . . . Cave-ins Triggered 3 | . . . . . . . . 2 . . . . . 1 . . . . . . . . . . . . . . . . . Exploration Rate (%) 40 | 3 39 46 47 24 61 17 41 14 60 34 71 66 13 62 69 68 23 17 45 53 60 45 20 43 51 73 38 6 34 28 15 Regions Visited 31 Branch Regions 21 Pre-discovered Areas 6 | . . 1 . 1 . . . . . . 1 . . . . . . . . . 3 . . . . . . . . . . Known Exits Taken 7 | . 1 . 1 . . . . 1 . . . . . . . . . 1 1 . . . 1 . . . . . . 1 . Unknown Exits Taken 24 | 1 . 1 . 1 1 1 1 . 1 1 1 1 1 1 1 1 1 . . 1 1 1 . 1 1 1 1 1 1 . . Scrap Searched 14 | . . 1 . . . 1 . . 1 2 . 3 . . . . . . . 2 . 1 . 2 1 . . . . . . Spaces Dug 66 | . . . 3 . . . . . . . . 11 . 5 . . . 2 1 . . . 9 . 2 . . 3 5 6 19 Terrain Destroyed 1406 | . . . 63 . . . 21 254 3 . 30 210 4 14 . . 149 49 16 60 . 152 160 3 5 . 30 3 5 73 102 Melee . | . . . . . . . . . . . . . . . . . . . . . . . . . . . . . . . . Projectile 141 | . . . . . . . . 1 3 . . 2 4 14 . . 4 5 16 6 . 1 26 3 5 . 1 3 5 18 24 AOE 1265 | . . . 63 . . . 21 253 . . 30 208 . . . . 145 44 . 54 . 151 134 . . . 29 . . 55 78 Actions | -11 -10 -10 -9 -9 -9 -8 -8 -7 -7 -7 -7 -6 -6 -6 -6 -6 -6 -5 -5 -5 -5 -4 -4 -4 -4 -4 -3 -3 -3 -2 -1 --------- Run | Scr Mat Min Mat Min Exi Min Mat Fac Low Low Dat Pro Fac Ext Cet Arc Hub Fac Upp Upp Zhi Pro Fac Upp Upp War Pro Res Tes Res Acc Total 12091 | 46 155 171 606 101 238 85 601 590 360 182 94 621 625 770 301 43 216 741 243 395 140 242 1141 316 306 513 284 145 163 742 915 Wait 1019 | . 2 . 98 . . . 51 12 2 . . 23 106 78 53 . 34 . 1 39 . 22 194 13 1 17 21 . . 44 208 Move 9623 | 37 137 153 439 99 234 82 467 527 342 174 79 517 450 448 202 39 131 705 223 324 134 198 769 266 294 494 224 136 145 599 555 Hop . | . . . . . . . . . . . . . . . . . . . . . . . . . . . . . . . . Pick Up 156 | 4 . 1 5 2 3 . 15 10 . 3 . 4 8 13 6 . 5 9 . 1 3 . 21 2 . 2 7 3 1 22 6 Fast Attach 39 | 5 1 . 8 . . 1 . 2 1 . . . 4 7 1 . . 3 . . 1 . 5 . . . . . . . . Attach 100 | . . . 7 . 1 . 8 6 1 . 3 7 4 7 . . 9 2 . 2 1 . 8 1 . . 7 2 4 10 10 Detach . | . . . . . . . . . . . . . . . . . . . . . . . . . . . . . . . . Swap . | . . . . . . . . . . . . . . . . . . . . . . . . . . . . . . . . Drop 37 | . . 1 . . . . 1 . . . . 1 1 2 7 . 2 5 . . 1 . 4 . . . . 1 1 7 3 Fire 883 | . 15 16 49 . . 2 59 33 14 5 12 34 52 55 32 4 32 17 19 29 . 22 139 1 11 . 25 3 10 60 133 Melee . | . . . . . . . . . . . . . . . . . . . . . . . . . . . . . . . . Ram . | . . . . . . . . . . . . . . . . . . . . . . . . . . . . . . . . Kick . | . . . . . . . . . . . . . . . . . . . . . . . . . . . . . . . . Crush 4 | . . . . . . . . . . . . . . . . . 3 . . . . . 1 . . . . . . . . Escape Stasis 17 | . . . . . . . . . . . . . . 15 . . . . . . . . . . . . . . 2 . . Rewire 213 | . . . . . . . . . . . . 35 . 145 . . . . . . . . . 33 . . . . . . . Trap . | . . . . . . . . . . . . . . . . . . . . . . . . . . . . . . . . Miscellaneous . | . . . . . . . . . . . . . . . . . . . . . . . . . . . . . . . . Route ------- -11/Scrapyard -10/Materials (discovered 2 exits: *Mat / *Min) -10/Mines -9/Materials -9/Mines (discovered 2 exits: *Mat / *Exi) -9/Exiles -8/Mines -8/Materials -7/Factory (discovered 4 exits: *Sto x2 / *Low x2) -7/Lower Caves -7/Lower Caves -7/Data Miner -6/Proximity Caves -6/Factory -6/Extension (discovered 2 exits: *Fac / *Cet) -6/Cetus (discovered 2 exits: *Fac / [*Arc]) -6/Archives -6/Hub_04(d) -5/Factory (discovered 2 exits: *Upp x2) -5/Upper Caves -5/Upper Caves -5/Zhirov -4/Proximity Caves -4/Factory (discovered 4 exits: *Res / *Upp x2 / Arm) -4/Upper Caves -4/Upper Caves (discovered 2 exits: *Res / *War) -4/Warlord -3/Proximity Caves -3/Research -3/Testing -2/Research -1/Access To Epsilon Eridani History --------- Turn | Location | Event 6 | -11/Scrapyard | Discovered new exit (range 15) 70 | -11/Scrapyard | Entered Materials 218 | -10/Materials | Discovered new exit (range 16) 276 | -10/Materials | Identified exit to Mines 302 | -10/Materials | Build established: Mutant 335 | -10/Materials | Entered Mines 594 | -10/Mines | Core integrity fell below 50% 615 | -10/Mines | Discovered new exit (range 8) 627 | -10/Mines | Entered Materials 627 | -9/Materials | Evolved 2 slots: Utility x1, Weapon x1 924 | -9/Materials | Lost 5 parts (2n3w) 1210 | -9/Materials | Identified exit to Mines 1348 | -9/Materials | Lost 4 parts (1n2u1w) 1381 | -9/Materials | Entered Mines 1437 | -9/Mines | Discovered new exit (range 13) 1476 | -9/Mines | Learned location of Storage (-7) 1488 | -9/Mines | Deemed a non-threat by the Exiles lab entrance 1488 | -9/Mines | Discovered new exit (range 5) 1492 | -9/Mines | Entered Exiles 1519 | -9/Exiles | Met 8R-AWN 1538 | -9/Exiles | Met EX-HEX 1567 | -9/Exiles | Met EX-BIN 1582 | -9/Exiles | Aligned with FarCom system 1583 | -9/Exiles | Given EX-Vault access code 1610 | -9/Exiles | Opened EX-Vault 1617 | -9/Exiles | Found AWS/Autocannon 1636 | -9/Exiles | Build established: Tank 1641 | -9/Exiles | Warned to stay clear of 0b10 Research branches 1670 | -9/Exiles | Met EX-DEC 1743 | -9/Exiles | Discovered new exit (range 11) 1754 | -9/Exiles | Left Exiles lab with AWS/Autocannon 1754 | -9/Exiles | Entered Mines 1834 | -8/Mines | Discovered new exit (range 9) 1849 | -8/Mines | Entered Materials 1849 | -8/Materials | Evolved 2 slots: Utility x1, Weapon x1 2289 | -8/Materials | Destroyed 7 combat bots 2299 | -8/Materials | Lost 3 parts (1n1u1w) 2606 | -8/Materials | Discovered new exit (range 16) 2614 | -8/Materials | Destroyed 10 combat bots 2622 | -8/Materials | Lost 3 parts (1p2w) 2622 | -8/Materials | Entered Factory 2622 | -7/Factory | Evolved 2 slots: Utility x2 2809 | -7/Factory | Identified exit to Storage 2809 | -7/Factory | Identified exit to Lower Caves 2867 | -7/Factory | Build established: Hauler-Mutant 3005 | -7/Factory | Fabricated Lyr. Medium Armor Plating? 3317 | -7/Factory | Crushed by falling debris 3318 | -7/Factory | Crushed by falling debris 3339 | -7/Factory | Entered Lower Caves 3349 | -7/Lower Caves | Lost 3 parts (1n1u1w) 3504 | -7/Lower Caves | Learned Factory trap positions 3915 | -7/Lower Caves | Discovered new exit (range 12) 3945 | -7/Lower Caves | Entered another Lower Caves area 3981 | -7/Lower Caves | Adv. Assault Cannon stolen by Master Thief 4030 | -7/Lower Caves | Build established: Hauler-Tank 4080 | -7/Lower Caves | Encountered a Warlord checkpoint 4235 | -7/Lower Caves | Discovered new exit (range 6) 4250 | -7/Lower Caves | Entered Data Miner 4250 | -7/Data Miner | Discovered new exit (range 6) 4282 | -7/Data Miner | Met Data Miner 4310 | -7/Data Miner | Learned location of Section 7 (-2) 4310 | -7/Data Miner | Acquired the access code to Warlord's prototype stash 4338 | -7/Data Miner | Received God Mode back door access code from Data Miner 4358 | -7/Data Miner | Data Conduit disabled 4405 | -7/Data Miner | Lost 8 parts (2n1u5w) 4413 | -7/Data Miner | Entered Proximity Caves 4442 | -6/Proximity Caves | System corruption reached 10% 4493 | -6/Proximity Caves | Learned Factory emergency access door positions 4581 | -6/Proximity Caves | Attracted the attention of an 0b10 outpost 4606 | -6/Proximity Caves | Destroyed 7 combat bots 4647 | -6/Proximity Caves | Build established: Hauler-Mutant 4992 | -6/Proximity Caves | Destroyed 7 combat bots 5185 | -6/Proximity Caves | Spotted B-75 Beast 5199 | -6/Proximity Caves | Destroyed B-75 Beast 5323 | -6/Proximity Caves | Build established: Hauler-Tank 5408 | -6/Proximity Caves | Learned Factory emergency access door positions 5728 | -6/Proximity Caves | Discovered new exit (range 12) 5754 | -6/Proximity Caves | Entered Factory 5754 | -6/Factory | Evolved 2 slots: Utility x2 5755 | -6/Factory | Loaded intel: 83 trap records 5915 | -6/Factory | Lost 3 parts (1p1n1u) 6046 | -6/Factory | Build established: Hauler-Skirmisher 6157 | -6/Factory | Repaired Med. Storage Unit 6426 | -6/Factory | Build established: Skirmisher 6458 | -6/Factory | Fabricated Exp. Terrain Scan Processor? 6461 | -6/Factory | Local fabrication network quarantined 6857 | -6/Factory | Build established: Mutant 6992 | -6/Factory | Discovered new exit (range 15) 7025 | -6/Factory | Entered Extension 7030 | -6/Extension | Disrupted transfer network 7384 | -6/Extension | Rescued a captive Derelict 7384 | -6/Extension | Rescued a captive Derelict 7466 | -6/Extension | Lost 4 parts (1n3w) 7587 | -6/Extension | Rescued A7 7595 | -6/Extension | Rescued a captive Derelict 7630 | -6/Extension | Rescued a captive Derelict 7631 | -6/Extension | Rescued a captive Derelict 7642 | -6/Extension | Rescued a captive Derelict 7643 | -6/Extension | Rescued a captive Derelict 7775 | -6/Extension | Crushed by falling debris 7953 | -6/Extension | Rescued a captive Derelict 7964 | -6/Extension | Rescued a captive Derelict 8007 | -6/Extension | Rescued a captive Derelict 8008 | -6/Extension | Rescued a captive Derelict 8090 | -6/Extension | Build established: Hauler-Tank 8185 | -6/Extension | Rescued a captive Derelict 8210 | -6/Extension | Discovered new exit (range 10) 8212 | -6/Extension | Discovered new exit (range 6) 8243 | -6/Extension | Entered Cetus 8243 | -6/Cetus | Accompanied by 9 allies 8248 | -6/Cetus | Acquired a Cetus Manufacturing Module code from A7 8273 | -6/Cetus | Spotted Cetus Guard 8273 | -6/Cetus | Spotted Cetus Guard 8273 | -6/Cetus | Spotted Cetus Guard 8276 | -6/Cetus | Spotted Cetus Guard 8281 | -6/Cetus | Allies destroyed Cetus Guard 8282 | -6/Cetus | Allies destroyed Cetus Guard 8285 | -6/Cetus | Allies destroyed Cetus Guard 8287 | -6/Cetus | Allies destroyed Cetus Guard 8394 | -6/Cetus | Started Cetus Manufacturing Module 8419 | -6/Cetus | Manufactured an Enhanced Grunt 8444 | -6/Cetus | Manufactured an Enhanced Grunt 8469 | -6/Cetus | Manufactured an Enhanced Grunt 8494 | -6/Cetus | Manufactured an Enhanced Grunt 8518 | -6/Cetus | Discovered new exit (range 16) 8519 | -6/Cetus | Manufactured an Enhanced Grunt 8561 | -6/Cetus | Spotted Cetus Guard 8561 | -6/Cetus | Spotted Cetus Guard 8565 | -6/Cetus | Spotted Cetus Guard 8567 | -6/Cetus | Allies destroyed Cetus Guard 8576 | -6/Cetus | Allies destroyed Cetus Guard 8577 | -6/Cetus | Spotted Cetus Guard 8579 | -6/Cetus | Allies destroyed Cetus Guard 8582 | -6/Cetus | Allies destroyed Cetus Guard 8594 | -6/Cetus | Discovered new exit (range 15) 8603 | -6/Cetus | Met Revision 17 8743 | -6/Cetus | Destroyed A7 8745 | -6/Cetus | Extracted ID and sensor layout for unrecognized location from A7's data core 8756 | -6/Cetus | Entered Archives 8756 | -6/Archives | Accompanied by 5 allies 8778 | -6/Archives | Met Zhirov 8784 | -6/Archives | Reinforcements dispatched to Archives 8789 | -6/Archives | Discovered new exit (range 16) 8800 | -6/Archives | Zhirov warped through subspace 8818 | -6/Archives | Zhirov detonated Archives 8834 | -6/Archives | Entered Hub_04(d) 8849 | -6/Hub_04(d) | Lost 6 parts (2u4w) 9037 | -6/Hub_04(d) | Garrison activated, responded to threat 9139 | -6/Hub_04(d) | Discovered new exit (range 10) 9184 | -6/Hub_04(d) | First assault squad dispatched 9202 | -6/Hub_04(d) | Network Hub disabled 9203 | -6/Hub_04(d) | Disrupted transfer network 9209 | -6/Hub_04(d) | Entered Factory 9209 | -5/Factory | Evolved 2 slots: Propulsion x2 9235 | -5/Factory | Lost 3 parts (1n1u1w) 9379 | -5/Factory | Identified exit to Upper Caves 9472 | -5/Factory | Build established: Scavenger-Mutant 9934 | -5/Factory | Allied Derelicts emerged from ambush trap array 10443 | -5/Factory | Entered Upper Caves 10660 | -5/Upper Caves | Identified exit to Upper Caves 10846 | -5/Upper Caves | Entered another Upper Caves area 10978 | -5/Upper Caves | Encountered a Warlord checkpoint 11170 | -5/Upper Caves | Attacked by a delusional Derelict stockpiling parts 11304 | -5/Upper Caves | Found Alien Artifact 11344 | -5/Upper Caves | Attracted the attention of an 0b10 checkpoint 11465 | -5/Upper Caves | Discovered new exit (range 5) 11477 | -5/Upper Caves | Entered Zhirov 11477 | -5/Zhirov | Discovered new exit (range 3) 11543 | -5/Zhirov | Learned location of Quarantine (-2) 11543 | -5/Zhirov | Learned location of Testing (-3) 11543 | -5/Zhirov | Learned location of Command (-1) 11579 | -5/Zhirov | Found Alien Artifact 11579 | -5/Zhirov | Identified Integrated Dissipator 11579 | -5/Zhirov | Installed Integrated Dissipator, increased core heat dissipation (+2%) 11598 | -5/Zhirov | Found Alien Artifact 11702 | -5/Zhirov | Entered Proximity Caves 12047 | -4/Proximity Caves | Learned Research garrison access intel 12069 | -4/Proximity Caves | Discovered new exit (range 5) 12094 | -4/Proximity Caves | Entered Factory 12094 | -4/Factory | Evolved 2 slots: Utility x2 12939 | -4/Factory | Destroyed 11 combat bots 12946 | -4/Factory | Lost 3 parts (1u2w) 13188 | -4/Factory | Lost 3 parts (1p1u1w) 13192 | -4/Factory | Build established: Hacker-Mutant 13313 | -4/Factory | Fabricated Centrium Medium Armor Plating? 13344 | -4/Factory | First assault squad dispatched 13435 | -4/Factory | Lost 6 parts (2n2u2w) 13631 | -4/Factory | Discovered new exit (range 9) 13647 | -4/Factory | Identified exit to Upper Caves 13647 | -4/Factory | Identified exit to Armory 13762 | -4/Factory | Build established: Scavenger-Tank 13883 | -4/Factory | Entered Upper Caves 14097 | -4/Upper Caves | Attracted the attention of an 0b10 base 14298 | -4/Upper Caves | Discovered new exit (range 9) 14336 | -4/Upper Caves | Attacked by a delusional Derelict stockpiling Unaware 14413 | -4/Upper Caves | Entered another Upper Caves area 14413 | -4/Upper Caves | Accompanied by 3 allies 14466 | -4/Upper Caves | Discovered new exit (range 9) 14812 | -4/Upper Caves | Spotted B-86 Titan 14825 | -4/Upper Caves | Allies destroyed B-86 Titan 14923 | -4/Upper Caves | Discovered new exit (range 11) 14966 | -4/Upper Caves | Entered Warlord 14966 | -4/Warlord | Accompanied by 2 allies 15026 | -4/Warlord | System corruption cleaned by Quarantine Array 15107 | -4/Warlord | Build established: Hauler-Tank 15197 | -4/Warlord | Met Warlord 15213 | -4/Warlord | Opened Warlord's prototype stash 15220 | -4/Warlord | Found Prototype Device 15222 | -4/Warlord | Warlord's base attacked by MAIN.C 15223 | -4/Warlord | Found Prototype Processor 15572 | -4/Warlord | Warlord forces counterattacked 15696 | -4/Warlord | Opened side exit 15860 | -4/Warlord | Discovered new exit (range 9) 15874 | -4/Warlord | Entered Proximity Caves 15987 | -3/Proximity Caves | Attracted the attention of an 0b10 checkpoint 16037 | -3/Proximity Caves | Lost 3 parts (2n1u) 16054 | -3/Proximity Caves | Spotted B-86 Titan 16068 | -3/Proximity Caves | Destroyed B-86 Titan 16158 | -3/Proximity Caves | Build established: Hauler-Mutant 16255 | -3/Proximity Caves | Discovered new exit (range 6) 16264 | -3/Proximity Caves | Entered Research 16264 | -3/Research | Evolved 2 slots: Utility x2 16265 | -3/Research | Loaded intel: 4 garrison access locations 16408 | -3/Research | Discovered new exit (range 17) 16438 | -3/Research | Entered Testing 16439 | -3/Testing | Maximum security lockdown engaged 16543 | -3/Testing | Found Prototype Protection 16633 | -3/Testing | Discovered new exit (range 8) 16641 | -3/Testing | Entered Research 16641 | -2/Research | Warlord forces began assault on 0b10 16641 | -2/Research | Evolved 2 slots: Utility x2 16641 | -2/Research | Identified SHELL Armor 16663 | -2/Research | Lost 11 parts (1p1n5u4w) 16751 | -2/Research | Research machine network offline 16975 | -2/Research | Borebot progress halted 16980 | -2/Research | Build established: Scavenger-Mutant 16988 | -2/Research | Borebot progress halted 17030 | -2/Research | Met up with Warlord 17043 | -2/Research | Identified Exp. Armor Integrity Analyzer 17581 | -2/Research | Spotted IG-17V(K) 17585 | -2/Research | Destroyed IG-17V(K) 17639 | -2/Research | Discovered new exit (range 10) 17652 | -2/Research | Identified exit to Access 17656 | -2/Research | Entered Access 17656 | -1/Access | Evolved 2 slots: Utility x1, Weapon x1 17759 | -1/Access | Garrison activated, responded to threat 17877 | -1/Access | Identified exit to Surface 18127 | -1/Access | System corruption reached 10% 18313 | -1/Access | Destroyed 7 combat bots 18760 | -1/Access | System corruption reached 30% 18801 | -1/Access | Lost 5 parts (3n2w) 18818 | -1/Access | Spotted B-99 Colossus 18819 | -1/Access | Spotted B-99 Colossus 18857 | *** | Escaped! Last Messages --------------- 18845_ Critical hit. 18845_ Adv. Heavy Treads destroyed. 18845_ Knocked back. 18845_ Slug penetrates Sealed Heavy Doors. 18845_ Penetrated by Slug. 18846_ Rnf. Fission Core destroyed. 18846_ Penetrated by Slug. 18846_ Adv. Signal Interpreter destroyed. 18846_ Penetrated by Slug. 18846_ Slug penetrates Sealed Heavy Doors. 18846_ Penetrated by Slug. 18848_ Imp. Coolant Injector destroyed. 18848_ Slug penetrates Sealed Heavy Doors. 18850_ Main Access Shell breached. 18852_ Slug penetrates Main Access Shell. 18855_ Slug penetrates Sealed Heavy Doors. 18855_ Penetrated by Slug. 18855_ Slug penetrates Main Access Shell. 18857_ System corrupted: Energy discharge (-30). [Achievement: Attach With Care] Map ----- +----------------------------------------------------+ | """"""%%+ # #????????# " # | | "" * # # #????????# # | | "" !!# # #????????# # | | # # #????????# !! # | | # # #????????# !! # | | # # #????????################### | | ########"## # #?????????????????# #??????? | | # + #?????????????????# #??????? | | # ###########????????????????###??????? | | """" # # #??????????????????????#### | | """""" # # #??????????????????????# | | """""" + # #??????????????????????# | | """" # + =!! #??????????????????????# | | # # [!! #??????????????????????# | | + # [!! #??????????????????????# | | ""T"""" # =# =#####??????????????????# | | """""""" #!%#| *!%" #??????????????????# | | ######## #*=#= ############??????????????????# | | ?????# #= #! ?????????????????????????????# | | ?????## # #[ #######"?????#####??#########????# | | ?????# ## ["T""""?????? "??" #????# | | ?????# # """"??????? "?"" ###### | | ??????# "??"""""" """ "##"##### | | ??????#### "??" " " "" BB | | ?????????## "??" "" " | | ?????????## "??" @" "" | | ???????### "??" " """ | | ???????# # "??"""""" "?"" BB ###+#"### | | ???????# # "??????? "??" BB #???? ? | | ???????# "??????? "??" #???? # | | ???????# # ####""#??????###??#########???? # | | ???????## #??##"#???????????????????????? # | | ????????# #???###???????????????????????? # | | ########### ##?????????????????????????????? # | | " #??????????????????????????????? # | | # ##???????????????????????????????? # | | # #????????????????????????????????? # | | # #????????????????????????????????? # | | # #????????????????????????????????? ?? | | # #???????????????????????????????????? | | # #???????????????????????????????????? | | ""T"" # #???????????????????????????????????? | | """"" + #???????????????????????????????????? | | # #???????????????????????????????????? | | # #???????????????????????????????????? | | ########### #???????????????????????????????????? | | ?????????? ???????????????????????????????????? | | ?????????? #??????????????????????????????????? | | ?????????? #??????????????????????????????????? | | ?????????? #??????????????????????????????????? | +----------------------------------------------------+ Best States ------------- Heat Dissipation 72 Coolant Potential 80 Energy Generation 25 Energy Capacity 1110 Matter Stores 300 Matter Capacity 300 Sight Range 16 Terrain Scan Range 20 Terrain Scan Density 1010 Additional Mass Support 25 Armor Coverage 1800 Resistance: KI 30 Core Shielding 30 Utility Shielding 66 Weapon Cycling 20 Evasion (%) 42 Armor Integrity Analysis 90 Recoil Reduction 4 Offensive Hacking 24 Defensive Hacking 10 Item Schematics ----------------- Combat Drone Bay | -7/Data Miner | Free Lgt. Regenerative Plating | -7/Data Miner | Free Cmb. Gravmag System | -7/Data Miner | Free Exp. Sensor Array | -7/Data Miner | Free Exp. Terrain Scan Processor | -7/Data Miner | Free Exp. Targeting Computer | -7/Data Miner | Free Kinetic Spear | -7/Data Miner | Free Centrium Medium Armor Plating | -5/Factory | Scanalyzed Assault Drone Bay | -5/Zhirov | Free Exp. Heat Sink | -5/Zhirov | Free Exp. Optical Array | -5/Zhirov | Free Imp. Arc Thrower | -5/Zhirov | Free Robot Schematics ------------------ S-27 Virus | -7/Data Miner | Free G-50 Soldier | -7/Data Miner | Free P-70 Sage | -7/Data Miner | Free I-36 Angel | -7/Data Miner | Free Fabricated ------------ Lyr. Medium Armor Plating | x1 | -7/Factory | Preloaded Exp. Terrain Scan Processor | x1 | -6/Factory Centrium Medium Armor Plating | x1 | -4/Factory Alien Tech Used ----------------- Integrated Dissipator Achievements -------------- Attach With Care Challenges ------------ Sticky Parts Game ------ Seed RegenerativeSmallDrive Manual? 0 Play Time 02:46:47 Cumulative 719.4 hours Start 2019.11.16 @ 19:34:36 End 2019.11.16 @ 22:35:40 Sessions 1 Manual Loads 0 Difficulty Rogue Special Mode None Game No. 201 Rogue 201 Adventurer 0 Explorer 0 Win Type 0 Total 35 Types 26/0/2/3/2/1/1 Lore% 96 Gallery% 97 Achievement% 92 Wizard Run 0 Options --------- ASCII 0 Keyboard 1 Movement Numpad Keybinds 0 Fullscreen 1 Font 18/SmallcapsGlow Map View 76x50 Tactical HUD 1 Map Filters NONE Filters NONE Steam 1 RUN: a291c0c0-b704-457a-b183-aff8c2641cb9